bitfinex/quotes_BTCUSD_20251110
["timestamp","ask_amount","ask_price","bid_price","bid_amount"]
[1762737269794,0.40950488,106390.0,106380.0,0.48328788]
[1762737270415,0.40950488,106390.0,106380.0,0.16028788]
[1762737270920,0.40950488,106390.0,106380.0,0.16228788]
[1762737271125,0.22151729,106390.0,106380.0,0.35029314]
[1762737271358,0.18392,106390.0,106380.0,0.16228788]
[1762737271524,0.39540603,106390.0,106380.0,0.16228788]
[1762737271742,0.37190759,106390.0,106380.0,0.16028788]
[1762737271945,0.43029226,106390.0,106380.0,0.16128788]
[1762737272329,0.43029226,106390.0,106380.0,0.15828788]
[1762737272530,0.43029226,106390.0,106380.0,0.34629314]
[1762737272716,0.43029226,106390.0,106380.0,0.34729314]
[1762737272947,0.22420521,106370.0,106360.0,0.17160094]
[1762737273153,0.22422289,106360.0,106350.0,0.04244]
[1762737273354,0.18046,106360.0,106350.0,0.04258388]
[1762737273584,0.39200568,106360.0,106350.0,0.04258388]
[1762737273781,0.36850061,106360.0,106350.0,0.00014388]
[1762737274049,0.46943635,106360.0,106350.0,0.00014388]
[1762737274214,0.46943635,106360.0,106350.0,0.04258388]
[1762737274482,1.04375453,106360.0,106350.0,0.00014388]
[1762737274681,0.18809639,106330.0,106310.0,0.22109038]
[1762737274894,0.18809639,106330.0,106320.0,0.51853245]
[1762737275059,0.18809639,106330.0,106320.0,0.15309245]
[1762737275293,0.29840639,106330.0,106320.0,0.51853245]
[1762737275485,0.29840639,106330.0,106320.0,0.70664381]
[1762737275710,0.36581367,106330.0,106320.0,0.51853245]
[1762737276043,0.17772,106330.0,106320.0,0.70664381]
[1762737276967,0.17772,106330.0,106320.0,0.70764381]
[1762737277705,0.17772,106330.0,106320.0,0.70864381]
[1762737277958,0.1974216,106330.0,106320.0,0.47809245]
[1762737278189,0.42169755,106330.0,106320.0,0.002]
[1762737278427,0.38551527,106330.0,106320.0,0.002]
[1762737278897,0.38551527,106330.0,106320.0,0.001]
[1762737279152,0.17872,106330.0,106320.0,0.18911136]
[1762737279366,0.17872,106330.0,106320.0,0.66306826]
[1762737279576,0.17872,106330.0,106320.0,1.17617829]
[1762737279986,0.17772,106330.0,106320.0,1.17617829]
[1762737280204,0.17772,106330.0,106320.0,1.17517829]
[1762737280407,0.17772,106330.0,106320.0,1.17617829]
[1762737280612,0.17772,106330.0,106320.0,1.18080269]
[1762737280849,0.17772,106330.0,106320.0,1.38080269]
[1762737281271,0.06741,106350.0,106340.0,0.18807598]
[1762737281466,0.17772,106350.0,106340.0,0.18807598]
[1762737282242,0.18072,106350.0,106340.0,0.18807598]
[1762737283075,0.18272,106350.0,106340.0,0.18807598]
[1762737283759,0.39152518,106350.0,106330.0,0.51107785]
[1762737284116,0.39152518,106350.0,106330.0,1.02418788]
[1762737284117,0.09568,106340.0,106330.0,1.02418788]
[1762737284313,0.09568,106340.0,106330.0,0.51107785]
[1762737284878,0.28375598,106340.0,106330.0,0.51109367]
[1762737285073,0.09568,106340.0,106330.0,0.51109367]
[1762737285273,0.11918949,106340.0,106330.0,0.51109367]
[1762737286108,0.12018949,106340.0,106330.0,0.51109367]
[1762737286752,0.28475598,106340.0,106330.0,0.51109367]
[1762737287224,0.09668,106340.0,106330.0,0.51109367]
[1762737287862,0.28475598,106340.0,106330.0,0.51109367]
[1762737288070,0.09668,106340.0,106330.0,0.51109367]
[1762737288278,0.28475598,106340.0,106330.0,0.323]
[1762737288428,0.3370167,106340.0,106330.0,0.323]
[1762737289545,0.18810965,106330.0,106320.0,0.323]
[1762737289752,0.27987367,106330.0,106320.0,0.51111136]
[1762737290060,0.31679367,106330.0,106320.0,0.51111136]
[1762737290502,0.31679367,106330.0,106320.0,0.323]
[1762737291216,0.3735941,106330.0,106320.0,0.323]
[1762737291666,0.18811136,106320.0,106310.0,0.0070562]
[1762737291885,0.30377528,106320.0,106310.0,0.0070562]
[1762737292087,0.28026136,106320.0,106310.0,0.0070562]
[1762737292508,0.31644364,106320.0,106310.0,0.0070562]
[1762737292709,0.31691391,106320.0,106310.0,0.0070562]
[1762737292874,0.36846169,106320.0,106310.0,0.0080562]
[1762737293273,0.36846169,106320.0,106310.0,0.0090562]
[1762737294660,0.28026136,106320.0,106310.0,0.19718525]
[1762737294865,0.28026136,106320.0,106310.0,0.0090562]
[1762737295090,0.09215,106320.0,106310.0,0.19718525]
[1762737295968,0.28026136,106320.0,106310.0,0.0090562]
[1762737296175,0.32714401,106320.0,106310.0,0.0090562]
[1762737296419,0.13903265,106320.0,106310.0,0.19718525]
[1762737296621,0.32714401,106320.0,106310.0,0.19718525]
[1762737296833,0.32714401,106320.0,106310.0,0.0090562]
[1762737297416,0.32714401,106320.0,106310.0,0.19718525]
[1762737297570,0.32714401,106320.0,106310.0,0.0090562]
[1762737298434,0.36379656,106320.0,106310.0,0.0090562]
[1762737299123,0.36332629,106320.0,106310.0,0.0090562]
[1762737299716,0.36379656,106320.0,106310.0,0.0090562]
[1762737301114,0.22434673,106290.0,106280.0,0.0002]
[1762737301341,0.18819903,106280.0,106260.0,0.0002]
[1762737301598,0.18819903,106280.0,106260.0,0.32333561]
[1762737301599,0.35662484,106270.0,106260.0,0.32333561]
[1762737301813,0.33309986,106270.0,106260.0,0.32333561]
[1762737302071,0.33309986,106270.0,106260.0,0.51155318]
[1762737302634,0.33309986,106270.0,106260.0,0.32333561]
[1762737302835,0.33309986,106270.0,106260.0,0.32433561]
[1762737303036,0.33309986,106270.0,106260.0,0.51255318]
[1762737303276,0.33309986,106270.0,106260.0,0.32433561]
[1762737303475,0.1449,106270.0,106260.0,0.51255318]
[1762737303707,0.33309986,106270.0,106260.0,0.51255318]
[1762737303916,0.1449,106270.0,106260.0,0.51255318]
[1762737304119,0.33309986,106270.0,106260.0,0.32433561]
[1762737304297,0.33309986,106270.0,106260.0,0.32533561]
[1762737304718,0.33309986,106270.0,106260.0,0.51355318]
[1762737305130,0.33309986,106270.0,106260.0,0.32533561]
[1762737305529,0.33309986,106270.0,106260.0,0.51355318]
[1762737305752,0.1449,106270.0,106260.0,0.51355318]
[1762737305928,0.19764616,106260.0,106230.0,0.0002]
[1762737306154,0.0629,106240.0,106230.0,0.18894793]
[1762737306359,0.09297,106250.0,106240.0,0.51125301]
[1762737306565,0.04646,106270.0,106260.0,0.18821757]
[1762737307000,0.18327,106270.0,106260.0,1.37883508]
[1762737307424,0.04646,106290.0,106280.0,0.51118216]
[1762737307604,0.258145,106290.0,106280.0,0.43588]
[1762737307816,0.10936,106290.0,106280.0,1.13787161]
[1762737307989,0.18327,106290.0,106280.0,1.33787161]
[1762737308175,0.10936,106290.0,106280.0,1.33787161]
[1762737308382,0.10936,106290.0,106280.0,1.13787161]
[1762737308583,0.18541401,106290.0,106280.0,1.13787161]
[1762737308783,0.18341401,106290.0,106280.0,1.13787161]
[1762737308983,0.18341401,106290.0,106280.0,1.33787161]
[1762737309185,0.18341401,106290.0,106280.0,1.13987161]
[1762737309375,0.18341401,106290.0,106280.0,1.15987161]
[1762737309575,0.18641401,106290.0,106280.0,1.13987161]
[1762737310136,0.18341401,106290.0,106280.0,1.13987161]
[1762737310490,0.18341401,106290.0,106280.0,1.14187161]
[1762737310701,0.18341401,106290.0,106280.0,1.36187161]
[1762737310913,0.18341401,106290.0,106280.0,1.34187161]
[1762737311086,0.10950401,106290.0,106280.0,1.29791008]
[1762737311285,0.18341401,106290.0,106280.0,1.49791008]
[1762737311548,0.20693456,106290.0,106280.0,0.78480005]
[1762737311685,0.39509901,106290.0,106280.0,0.59661789]
[1762737311884,0.37157846,106290.0,106280.0,0.00469942]
[1762737312147,0.46889682,106290.0,106280.0,0.00469942]
[1762737312348,0.46889682,106290.0,106280.0,0.00269942]
[1762737312549,0.46889682,106290.0,106280.0,0.00069942]
[1762737312767,0.46842641,106290.0,106280.0,0.00169942]
[1762737312987,0.99353643,106290.0,106280.0,0.00169942]
[1762737313141,0.99353643,106290.0,106250.0,0.11288]
[1762737313142,0.18822673,106260.0,106250.0,0.11288]
[1762737313485,0.02352719,106260.0,106250.0,0.30111529]
[1762737313779,0.18327,106260.0,106250.0,0.62411529]
[1762737314284,0.37148757,106260.0,106250.0,0.62411529]
[1762737314444,0.18327,106260.0,106250.0,0.51123529]
[1762737314662,0.18327,106260.0,106250.0,0.62411529]
[1762737315006,0.03618228,106250.0,106230.0,0.1978813]
[1762737315133,0.09297,106250.0,106240.0,0.18825268]
[1762737315621,0.32534529,106250.0,106230.0,0.1978813]
[1762737315895,0.09344058,106250.0,106240.0,0.18825301]
[1762737316207,0.04693054,106260.0,106250.0,0.18823529]
[1762737316403,0.23467757,106260.0,106250.0,0.18823529]
[1762737316548,0.10936,106260.0,106250.0,0.18823529]
[1762737316752,0.18327,106260.0,106250.0,0.18823529]
[1762737316954,0.20541795,106260.0,106250.0,0.18823529]
[1762737317152,0.20541795,106260.0,106250.0,0.51123529]
[1762737317355,0.20385884,106260.0,106250.0,0.89400591]
[1762737317595,0.18327,106260.0,106250.0,0.51123529]
[1762737317975,0.37448757,106260.0,106250.0,0.323]
[1762737318174,0.37448757,106260.0,106250.0,0.51123529]
[1762737318475,0.18823529,106250.0,106240.0,0.18873317]
[1762737318672,0.3047347,106250.0,106240.0,0.67090195]
[1762737318885,0.38161758,106250.0,106240.0,0.32348016]
[1762737319093,0.38161758,106250.0,106240.0,0.32441323]
[1762737319720,0.38161758,106250.0,106240.0,0.00141323]
[1762737319936,0.19338229,106250.0,106240.0,0.18966624]
[1762737320147,0.13711,106250.0,106240.0,0.18966624]
[1762737320558,0.3488747,106250.0,106240.0,0.00141323]
[1762737320707,0.32734529,106250.0,106240.0,0.00141323]
[1762737321062,0.32734529,106250.0,106240.0,0.18966624]
[1762737321629,0.32634529,106250.0,106240.0,0.18966624]
[1762737321834,0.33134529,106250.0,106240.0,0.18966624]
[1762737322035,0.14311,106250.0,106240.0,0.18966624]
[1762737322248,0.14211,106250.0,106240.0,0.18966624]
[1762737322488,0.75229819,106250.0,106240.0,0.00141323]
[1762737322644,0.75276877,106250.0,106240.0,0.00141323]
[1762737322844,0.18827073,106230.0,106210.0,0.18838531]
[1762737323089,0.18827073,106230.0,106210.0,0.1885295]
[1762737323090,0.18357,106220.0,106210.0,0.1885295]
[1762737323291,0.20710605,106220.0,106210.0,0.57130012]
[1762737323454,0.37185845,106220.0,106210.0,0.00022419]
[1762737324045,0.37185845,106220.0,106210.0,0.18853037]
[1762737324634,0.37185845,106220.0,106210.0,0.19053037]
[1762737324847,0.37185845,106220.0,106210.0,0.00222419]
[1762737325058,0.37185845,106220.0,106210.0,0.18853037]
[1762737325282,0.18357,106220.0,106210.0,0.18853037]
[1762737325408,0.18357,106220.0,106210.0,0.19053037]
[1762737326433,0.37185845,106220.0,106210.0,0.19053037]
[1762737327298,0.18357,106220.0,106210.0,0.19053037]
[1762737327661,0.18357,106220.0,106210.0,0.21053037]
[1762737327861,0.18357,106220.0,106210.0,0.00222419]
[1762737327863,0.85157862,106220.0,106210.0,0.00222419]
[1762737328067,0.83851328,106220.0,106210.0,0.00222419]
[1762737328312,0.44574267,106220.0,106210.0,0.00222419]
[1762737328558,0.44574267,106220.0,106210.0,0.18853037]
[1762737328731,0.18357,106220.0,106210.0,0.18923049]
[1762737329056,0.18357,106220.0,106210.0,0.00292431]
[1762737329339,0.3953945,106220.0,106210.0,0.00292431]
[1762737329483,0.40851145,106220.0,106210.0,0.00292431]
[1762737329680,0.50651388,106220.0,106210.0,0.00292431]
[1762737330445,0.50951388,106220.0,106210.0,0.00092431]
[1762737330735,0.51051388,106220.0,106210.0,0.00092431]
[1762737331096,0.37585845,106220.0,106210.0,0.18923049]
[1762737331299,0.37585845,106220.0,106210.0,0.00092431]
[1762737331800,0.41251145,106220.0,106210.0,0.00092431]
[1762737332546,0.18757,106220.0,106210.0,0.18923049]
[1762737332904,0.3993945,106220.0,106210.0,0.00092431]
[1762737333110,0.43387374,106220.0,106210.0,0.00092431]
[1762737333312,0.47005602,106220.0,106210.0,0.00092431]
[1762737333514,0.4300695,106220.0,106210.0,0.00092431]
[1762737333713,0.4300695,106220.0,106210.0,0.18923049]
[1762737333890,0.42959878,106220.0,106210.0,0.18923049]
[1762737334270,0.42959878,106220.0,106210.0,0.00092431]
[1762737334431,0.4300695,106220.0,106210.0,0.18923049]
[1762737334631,0.42959878,106220.0,106210.0,0.18923049]
[1762737334837,0.20512805,106220.0,106210.0,0.18923049]
[1762737335040,0.3934165,106220.0,106210.0,0.00092431]
[1762737335537,0.45210306,106220.0,106210.0,0.00092431]
[1762737335937,0.39388722,106220.0,106210.0,0.00092431]
[1762737341269,0.3934165,106220.0,106210.0,0.00092431]
[1762737341624,0.3934165,106220.0,106210.0,0.18923049]
[1762737342049,0.3934165,106220.0,106210.0,0.00092431]
[1762737344782,0.3934165,106220.0,106210.0,0.18923049]
[1762737345227,0.20512805,106220.0,106210.0,0.18923049]
[1762737345460,0.18757,106220.0,106210.0,0.18923049]
[1762737345646,0.3934024,106220.0,106210.0,0.18923049]
[1762737345847,0.18757,106220.0,106210.0,0.18923049]
[1762737346268,0.20511532,106220.0,106210.0,0.18923049]
[1762737346412,0.18757,106220.0,106210.0,0.18923049]
[1762737346843,0.43702583,106220.0,106210.0,0.18923049]
[1762737347038,0.43103564,106220.0,106210.0,0.18923049]
[1762737347476,0.43104043,106220.0,106210.0,0.00092431]
[1762737348638,0.84999333,106220.0,106210.0,0.00092431]
[1762737349464,0.18834165,106190.0,106180.0,0.51135938]
[1762737349686,0.25710435,106190.0,106180.0,0.323]
[1762737349921,0.37273165,106190.0,106170.0,0.19774644]
[1762737350125,0.37273165,106190.0,106170.0,0.52074644]
[1762737350126,0.18835938,106180.0,106170.0,0.52074644]
[1762737350338,0.24151938,106180.0,106170.0,0.3492828]
[1762737350549,0.32752938,106180.0,106170.0,0.6722828]
[1762737351415,0.32752938,106180.0,106170.0,0.47453636]
[1762737351620,0.13917,106180.0,106170.0,0.66291349]
[1762737351760,0.16271492,106180.0,106170.0,0.66291349]
[1762737351996,0.3510743,106180.0,106170.0,0.66291349]
[1762737352212,0.32752938,106180.0,106170.0,0.66691349]
[1762737352463,0.32752938,106180.0,106170.0,0.47753636]
[1762737352600,0.32752938,106180.0,106170.0,0.48057663]
[1762737352801,0.32752938,106180.0,106170.0,0.66895376]
[1762737353107,0.32752938,106180.0,106170.0,0.47757663]
[1762737353311,0.32752938,106180.0,106170.0,0.42757663]
[1762737353537,0.32752938,106180.0,106170.0,0.42957663]
[1762737353850,0.32952938,106180.0,106170.0,0.42957663]
[1762737354047,0.32952938,106180.0,106170.0,0.61795376]
[1762737354664,0.14117,106180.0,106170.0,0.61495376]
[1762737354839,0.16471492,106180.0,106170.0,0.61495376]
[1762737355043,0.16571492,106180.0,106170.0,0.61495376]
[1762737355426,0.3540743,106180.0,106170.0,0.61588775]
[1762737355638,0.14217,106180.0,106170.0,0.61588775]
[1762737355848,0.16571492,106180.0,106170.0,0.61588775]
[1762737356252,0.16571492,106180.0,106170.0,0.61754998]
[1762737356473,0.14217,106180.0,106170.0,0.61754998]
[1762737356676,0.003,106180.0,106170.0,0.70046998]
[1762737356880,0.003,106180.0,106170.0,1.0832406]
[1762737357478,0.05648,106180.0,106170.0,1.0239906]
[1762737357664,0.05648,106180.0,106170.0,1.0439906]
[1762737359092,0.003,106180.0,106170.0,0.64121998]
[1762737359272,0.05648,106180.0,106170.0,0.66121998]
[1762737359492,0.05648,106180.0,106170.0,0.64121998]
[1762737360035,0.14216,106180.0,106170.0,0.61754998]
[1762737360457,0.33051938,106180.0,106170.0,0.61754998]
[1762737360653,0.14216,106180.0,106170.0,0.61754998]
[1762737360875,0.33051938,106180.0,106170.0,0.61754998]
[1762737362680,0.33051938,106180.0,106170.0,0.42917285]
[1762737363297,0.80592791,106180.0,106170.0,0.00093399]
[1762737363521,0.8063988,106180.0,106170.0,0.00093399]
[1762737364316,0.42362818,106180.0,106170.0,0.18931112]
[1762737364512,0.36670166,106180.0,106170.0,0.18931112]
[1762737364727,0.14216,106180.0,106170.0,0.18931112]
[1762737364927,0.14216,106180.0,106170.0,0.89508174]
[1762737365457,0.05648,106180.0,106170.0,0.91875174]
[1762737365666,0.05648,106180.0,106170.0,0.93875174]
[1762737366076,0.003,106180.0,106170.0,0.96324174]
[1762737366225,0.001,106180.0,106170.0,1.06801174]
[1762737366550,0.002,106180.0,106170.0,3.42739308]
[1762737366729,0.001,106180.0,106170.0,2.95826959]
[1762737366932,0.001,106180.0,106170.0,1.80734021]
[1762737367177,0.14016,106180.0,106170.0,1.70148021]
[1762737367340,0.14016,106180.0,106170.0,1.97884021]
[1762737367341,0.001,106180.0,106170.0,1.97884021]
[1762737367544,0.001,106180.0,106170.0,1.99884021]
[1762737367911,0.001,106180.0,106170.0,1.97884021]
[1762737368318,6.74e-05,106180.0,106170.0,1.97884021]
[1762737368521,0.32873678,106180.0,106170.0,0.48431533]
[1762737368787,0.1403774,106180.0,106170.0,0.48431533]
[1762737368979,0.0538074,106180.0,106170.0,1.07913308]
[1762737369183,6.74e-05,106180.0,106170.0,1.20779308]
[1762737369401,6.74e-05,106180.0,106170.0,1.2256744]
[1762737369604,4.28e-06,106180.0,106170.0,1.2256744]
[1762737369819,4.28e-06,106180.0,106170.0,3.4456744]
[1762737370726,4.28e-06,106180.0,106170.0,3.04290378]
[1762737370927,4.28e-06,106180.0,106170.0,2.2249744]
[1762737371119,4.28e-06,106180.0,106170.0,2.1325744]
[1762737371335,4.28e-06,106180.0,106170.0,2.1525744]
[1762737371536,4.28e-06,106180.0,106170.0,2.20348284]
[1762737371709,4.28e-06,106180.0,106170.0,1.67371222]
[1762737371909,4.28e-06,106180.0,106170.0,2.02438284]
[1762737372396,4.28e-06,106180.0,106170.0,1.83508284]
[1762737372601,4.28e-06,106180.0,106170.0,1.66108284]
[1762737373710,4.28e-06,106180.0,106170.0,1.68108284]
[1762737373938,4.28e-06,106180.0,106170.0,0.82863222]
[1762737374089,0.05374428,106180.0,106170.0,0.39124378]
[1762737374290,0.32867366,106180.0,106170.0,0.36757378]
[1762737374616,0.32867366,106180.0,106170.0,0.69057378]
[1762737375445,0.32867366,106180.0,106170.0,0.20819244]
[1762737375645,0.32867366,106180.0,106170.0,0.53119244]
[1762737375851,0.14031428,106180.0,106170.0,0.53119244]
[1762737376050,4.28e-06,106180.0,106170.0,1.06593306]
[1762737376251,4.28e-06,106180.0,106170.0,1.22577616]
[1762737376501,0.04407,106190.0,106180.0,0.18835938]
[1762737376637,0.13097,106190.0,106180.0,0.18835938]
[1762737376966,0.18471,106190.0,106180.0,0.33840529]
[1762737377391,0.37305165,106190.0,106180.0,0.33840529]
[1762737377592,0.37305165,106190.0,106180.0,0.15004591]
[1762737377796,0.37305165,106190.0,106180.0,0.33840529]
[1762737377997,0.37505165,106190.0,106180.0,0.15004591]
[1762737378201,0.37505165,106190.0,106180.0,0.32370043]
[1762737379028,0.37605165,106190.0,106180.0,0.32370043]
[1762737381705,0.37605165,106190.0,106180.0,0.51205981]
[1762737381908,0.18771,106190.0,106180.0,0.51205981]
[1762737382978,0.18771,106190.0,106180.0,0.53205981]
[1762737383639,0.10081,106190.0,106180.0,0.51205981]
[1762737383856,0.003,106190.0,106180.0,1.08253039]
[1762737384008,0.04707,106190.0,106180.0,0.56745981]
[1762737384210,0.18737,106190.0,106180.0,0.51205981]
[1762737384413,0.04707,106190.0,106180.0,0.51205981]
[1762737384617,0.04707,106190.0,106180.0,0.67895981]
[1762737384817,0.003,106190.0,106180.0,3.47422331]
[1762737385016,0.18852,106190.0,106180.0,0.63051335]
[1762737385220,0.18852,106190.0,106180.0,0.81887273]
[1762737385784,0.2110627,106190.0,106180.0,0.81887273]
[1762737385991,0.002,106190.0,106180.0,1.47422331]
[1762737386349,0.002,106190.0,106180.0,1.40945331]
[1762737386550,0.04607,106190.0,106180.0,1.26255331]
[1762737386749,0.09894,106190.0,106180.0,1.18704331]
[1762737386959,0.09894,106190.0,106180.0,0.67197273]
[1762737387657,0.37386165,106190.0,106180.0,0.67197273]
[1762737388208,0.37386165,106190.0,106180.0,0.48361335]
[1762737388403,0.37386165,106190.0,106180.0,0.67197273]
[1762737389797,0.37386165,106190.0,106180.0,0.51205981]
[1762737390740,0.37386165,106190.0,106180.0,0.51201981]
[1762737390886,0.18552,106190.0,106180.0,0.51201981]
[1762737391396,0.09894,106190.0,106180.0,0.51201981]
[1762737391756,0.18344,106190.0,106180.0,0.51201981]
[1762737392287,0.09894,106190.0,106180.0,0.51201981]
[1762737392492,0.04407,106190.0,106180.0,0.51201981]
[1762737392863,0.04407,106190.0,106180.0,0.53201981]
[1762737393020,0.04407,106190.0,106180.0,0.57758981]
[1762737393221,0.04407,106190.0,106180.0,0.51201981]
[1762737393422,0.09727,106190.0,106180.0,0.51201981]
[1762737393630,0.09727,106190.0,106180.0,0.67200444]
[1762737393836,0.04407,106210.0,106200.0,0.18832391]
[1762737394001,0.12871396,106210.0,106200.0,0.18832391]
[1762737394205,0.18191396,106210.0,106200.0,0.51132391]
[1762737394608,0.09741396,106210.0,106200.0,0.51132391]
[1762737394869,0.04421396,106210.0,106200.0,0.51132391]
[1762737395160,0.04721396,106210.0,106200.0,0.58328391]
[1762737395331,0.05021396,106210.0,106200.0,0.51132391]
[1762737395493,0.10341396,106210.0,106200.0,0.51132391]
[1762737396135,0.10341396,106210.0,106200.0,0.53132391]
[1762737396336,0.04721396,106210.0,106200.0,0.56328391]
[1762737396611,0.04421396,106210.0,106200.0,0.58328391]
[1762737396758,0.04421396,106210.0,106200.0,0.58086391]
[1762737397091,0.04621396,106210.0,106200.0,0.58086391]
[1762737397431,0.09941396,106210.0,106200.0,0.50890391]
[1762737397628,0.10041396,106210.0,106200.0,0.50890391]
[1762737397856,0.10041396,106210.0,106200.0,0.52890391]
[1762737398005,0.10041396,106210.0,106200.0,0.323]
[1762737398217,0.37322014,106210.0,106200.0,0.71132391]
[1762737398413,0.18491396,106210.0,106200.0,0.71132391]
[1762737399535,0.10041396,106210.0,106200.0,0.72632391]
[1762737399757,0.18491396,106210.0,106200.0,0.72632391]
[1762737400262,0.20087544,106210.0,106200.0,0.70632391]
[1762737400413,0.10041396,106210.0,106200.0,0.72632391]
[1762737400613,0.10041396,106210.0,106200.0,0.70632391]
[1762737401214,0.04721396,106210.0,106200.0,0.77828391]
[1762737401435,0.00314396,106210.0,106200.0,2.81274182]
[1762737401657,0.00314396,106210.0,106200.0,3.3278124]
[1762737401817,0.00314396,106210.0,106200.0,3.3478124]
[1762737402007,0.04304,106230.0,106220.0,0.91128845]
[1762737402267,0.13096,106240.0,106230.0,0.51127073]
[1762737402455,0.04646,106240.0,106230.0,1.06703131]
[1762737402610,0.31622811,106260.0,106250.0,0.18823529]
[1762737402812,0.31622811,106260.0,106240.0,0.58823698]
[1762737402813,0.23140241,106260.0,106240.0,0.58823698]
[1762737403058,0.09624,106250.0,106240.0,0.91123698]
[1762737403436,0.18074,106250.0,106240.0,0.91123698]
[1762737403645,0.09624,106250.0,106240.0,0.91123698]
[1762737404048,0.06408161,106260.0,106250.0,0.51123529]
[1762737404049,0.04318484,106260.0,106250.0,0.51123529]
[1762737404276,0.00014484,106260.0,106250.0,1.07680587]
[1762737404419,0.00014484,106260.0,106250.0,1.20612877]
[1762737404622,0.00014484,106260.0,106250.0,1.28925877]
[1762737404862,0.00014484,106260.0,106250.0,1.30925877]
[1762737405095,0.00014484,106260.0,106250.0,3.30925877]
[1762737405296,0.00314484,106260.0,106250.0,3.33633431]
[1762737405498,0.00314484,106260.0,106250.0,3.36167853]
[1762737405874,0.00314484,106260.0,106250.0,3.43355708]
[1762737406219,0.00314484,106260.0,106250.0,3.35613732]
[1762737406579,0.04344,106300.0,106290.0,0.18816445]
[1762737406777,0.06148971,106300.0,106290.0,1.24910503]
[1762737407151,0.06148971,106300.0,106290.0,1.42529154]
[1762737407152,0.04392263,106300.0,106290.0,1.42529154]
[1762737407581,0.00088263,106300.0,106290.0,0.96417096]
[1762737407788,0.00088263,106300.0,106290.0,1.47924154]
[1762737408192,0.00388263,106300.0,106290.0,1.42529154]
[1762737408343,0.00388263,106300.0,106290.0,1.47924154]
[1762737408545,0.00388263,106300.0,106290.0,1.56282154]
[1762737408955,0.00588263,106300.0,106290.0,3.13162154]
[1762737409355,0.00588263,106300.0,106290.0,3.1840413]
[1762737409560,1e-08,106300.0,106290.0,3.14780382]
[1762737409765,1e-08,106300.0,106290.0,3.19424154]
[1762737409958,1e-08,106300.0,106290.0,2.68084154]
[1762737410191,0.0004,106320.0,106310.0,0.58812905]
[1762737410396,0.00054476,106320.0,106310.0,0.82032593]
[1762737410712,0.00054476,106320.0,106310.0,0.8378478]
[1762737410911,0.00054476,106320.0,106310.0,0.86607001]
[1762737411406,0.00054476,106320.0,106310.0,1.48472059]
[1762737411656,0.00054476,106320.0,106310.0,3.46472059]
[1762737411804,0.00254476,106320.0,106310.0,3.80772059]
[1762737412174,0.00454476,106320.0,106310.0,3.87347841]
[1762737412377,0.0004,106340.0,106330.0,0.91109367]
[1762737412620,0.0004,106340.0,106330.0,1.46482425]
[1762737412830,0.0004,106340.0,106330.0,1.48021134]
[1762737413276,0.0004,106340.0,106330.0,1.56379134]
[1762737414242,0.0004,106340.0,106330.0,3.56379134]
[1762737414439,0.0004,106340.0,106330.0,2.89079134]
[1762737414634,0.0004,106340.0,106330.0,1.49432076]
[1762737415119,0.0004,106340.0,106330.0,2.00939134]
[1762737415303,0.0004,106340.0,106330.0,2.16382376]
[1762737415714,0.0004,106340.0,106330.0,2.25588489]
[1762737416070,0.0004,106340.0,106330.0,2.23588489]
[1762737416293,0.0004,106340.0,106330.0,2.25588489]
[1762737416863,0.0004,106340.0,106330.0,2.26595698]
[1762737417073,1e-08,106340.0,106330.0,2.26595698]
[1762737417474,1e-08,106340.0,106330.0,2.24595698]
[1762737417899,1e-08,106340.0,106330.0,2.26595698]
[1762737418097,1e-08,106340.0,106330.0,1.7308864]
[1762737418318,1e-08,106340.0,106330.0,2.24595698]
[1762737418525,1e-08,106340.0,106330.0,2.26595698]
[1762737418720,1e-08,106340.0,106330.0,1.2057064]
[1762737420258,0.31875599,106340.0,106330.0,0.37581951]
[1762737420459,0.31875599,106340.0,106330.0,0.34852609]
[1762737420673,0.31875599,106340.0,106330.0,0.16043242]
[1762737420882,0.31875599,106340.0,106330.0,0.006]
[1762737421322,0.31875599,106340.0,106330.0,0.51509367]
[1762737421558,0.13068001,106340.0,106330.0,0.18809367]
[1762737421770,0.13068001,106340.0,106330.0,0.38909367]
[1762737421983,0.90701888,106340.0,106330.0,0.001]
[1762737422211,0.90748906,106340.0,106330.0,0.001]
[1762737422880,0.39241848,106340.0,106330.0,0.002]
[1762737423041,0.96869721,106340.0,106330.0,0.001]
[1762737423243,0.18812891,106320.0,106300.0,0.59753847]
[1762737423439,0.26216905,106310.0,106300.0,0.00014476]
[1762737423643,0.34319905,106310.0,106300.0,0.00014476]
[1762737423841,0.37938133,106310.0,106300.0,0.00014476]
[1762737424089,0.89492223,106310.0,106300.0,0.00014476]
[1762737424450,0.37985165,106310.0,106300.0,0.00014476]
[1762737424665,0.15507,106310.0,106300.0,0.00014476]
[1762737424902,0.04117,106310.0,106300.0,0.71129151]
[1762737425069,0.08250027,106320.0,106310.0,0.53112905]
[1762737425275,0.08203,106320.0,106310.0,0.51112905]
[1762737425630,0.31979136,106320.0,106310.0,0.51112905]
[1762737425844,0.31879136,106320.0,106310.0,0.51112905]
[1762737426014,0.13068,106320.0,106310.0,0.51112905]
[1762737426397,0.13068,106320.0,106310.0,0.53112905]
[1762737426612,0.32079136,106320.0,106310.0,0.323]
[1762737426815,0.32079136,106320.0,106310.0,0.51112905]
[1762737427012,0.32379136,106320.0,106310.0,0.51112905]
[1762737427359,0.37914395,106320.0,106310.0,0.323]
[1762737427513,0.18812905,106310.0,106300.0,0.32314476]
[1762737427718,0.96788321,106310.0,106300.0,0.00014476]
[1762737427958,0.18817914,106290.0,106270.0,0.38819195]
[1762737428157,0.18817914,106290.0,106280.0,0.51118216]
[1762737428158,0.21088838,106290.0,106280.0,0.51118216]
[1762737428356,0.21088838,106290.0,106280.0,0.18818216]
[1762737428541,0.30170838,106290.0,106280.0,0.18818216]
[1762737428720,0.09082,106290.0,106280.0,0.51118216]
[1762737428920,0.17185,106290.0,106280.0,0.51118216]
[1762737429178,0.09082,106290.0,106280.0,0.71118216]
[1762737429374,0.12267032,106310.0,106290.0,0.38816445]
[1762737429556,0.1222,106310.0,106300.0,0.18814675]
[1762737429748,0.31032905,106310.0,106300.0,0.18814675]
[1762737429954,0.17185,106310.0,106300.0,0.18814675]
[1762737430710,0.002,106310.0,106300.0,0.56383675]
[1762737430859,0.002,106310.0,106300.0,3.68664143]
[1762737431061,0.002,106310.0,106300.0,3.66664143]
[1762737431251,0.003,106310.0,106300.0,2.71954143]
[1762737431449,0.003,106310.0,106300.0,2.73954143]
[1762737431656,0.002,106310.0,106300.0,2.73954143]
[1762737431861,0.08150019,106340.0,106330.0,0.51109367]
[1762737432061,1e-08,106340.0,106330.0,0.51109367]
[1762737432263,0.13068001,106340.0,106330.0,0.51109367]
[1762737432469,0.13068001,106340.0,106330.0,0.53931304]
[1762737433100,0.04979468,106340.0,106330.0,0.53931304]
[1762737433503,0.00014468,106340.0,106330.0,0.53931304]
[1762737433768,0.0004,106360.0,106330.0,1.81441526]